bitfinex-derivatives/quotes_SOLF0:USTF0_20260108
["timestamp","ask_amount","ask_price","bid_price","bid_amount"]
[1767845725132,1.82721158,136.95,136.88,1.81993687]
[1767845725133,2.71250334,136.95,136.88,1.81993687]
[1767845725729,0.88529176,136.94,136.88,1.81993687]
[1767845727331,7.46459176,136.94,136.88,1.81993687]
[1767845727534,0.88529176,136.94,136.89,1.81993687]
[1767845729232,7.46459176,136.94,136.89,1.81993687]
[1767845729632,0.88529176,136.94,136.89,1.81993687]
[1767845730137,7.46459176,136.94,136.89,1.81993687]
[1767845735938,7.37307488,136.96,136.89,1.81993687]
[1767845736442,7.37307488,136.96,136.9,1.78048137]
[1767845736443,0.79437488,136.96,136.9,1.78048137]
[1767845738446,0.77157439,136.95,136.9,1.78048137]
[1767845739249,0.76415611,136.97,136.9,1.78048137]
[1767845740540,0.75657029,136.96,136.9,1.78048137]
[1767845741340,7.33497029,136.96,136.9,1.78048137]
[1767845743345,0.73437008,136.95,136.9,0.04760467]
[1767845743547,0.73437008,136.94,136.9,0.04760467]
[1767845744547,7.31377008,136.94,136.9,0.04760467]
[1767845745151,6.5787,136.96,136.9,1.78048137]
[1767845746151,7.2916166,136.96,136.9,1.78048137]
[1767845750343,6.5789,136.95,136.9,1.78048137]
[1767845750548,7.26433065,136.95,136.9,1.78048137]
[1767845751749,0.68543065,136.95,136.9,1.78048137]
[1767845753757,6.5783,136.97,136.9,1.78048137]
[1767845754157,7.23751451,136.97,136.9,1.78048137]
[1767845755651,7.23751451,136.97,136.9,8.36158137]
[1767845755852,7.23114302,136.96,136.9,1.78048137]
[1767845756052,0.65284302,136.96,136.9,1.78048137]
[1767845756253,0.65284302,136.96,136.9,1.7328767]
[1767845756559,0.65284302,136.96,136.92,0.04864749]
[1767845759361,0.62809192,136.95,136.9,1.7328767]
[1767845760750,0.62809192,136.95,136.91,0.05294266]
[1767845761756,102.3104,136.99,136.86,8.3155767]
[1767845761757,0.61612755,136.94,136.86,8.3155767]
[1767845761958,0.61612755,136.94,136.86,1.7328767]
[1767845762956,7.19542755,136.94,136.86,1.7328767]
[1767845763262,0.5472697,136.93,136.86,1.7328767]
[1767845763654,0.5472697,136.93,136.84,1.62791993]
[1767845763959,7.12251135,136.91,136.85,1.62791993]
[1767845764559,0.53620625,136.89,136.83,93.1974758]
[1767845764751,0.53620625,136.89,136.83,86.36]
[1767845765160,0.53620625,136.89,136.82,1.62791993]
[1767845765663,0.0468203,136.87,136.82,1.62791993]
[1767845766363,0.57220221,136.87,136.79,1.62791993]
[1767845768460,7.09813483,136.86,136.79,1.62791993]
[1767845770369,0.51483483,136.86,136.79,1.62791993]
[1767845771964,0.51483483,136.86,136.8,1.62791993]
[1767845772568,7.09813483,136.86,136.8,1.62791993]
[1767845774568,0.51483483,136.86,136.8,1.62791993]
[1767845774771,7.06696565,136.88,136.8,1.62791993]
[1767845775170,0.48456565,136.87,136.8,1.62791993]
[1767845775372,0.48456565,136.87,136.81,1.62791993]
[1767845776370,7.06726565,136.87,136.81,1.62791993]
[1767845787190,6.5833,136.86,136.81,1.62791993]
[1767845789891,6.5836,136.85,136.79,1.62791993]
[1767845790392,6.99704849,136.85,136.79,1.62791993]
[1767845791188,6.5841,136.84,136.79,1.62791993]
[1767845792485,0.40242534,136.82,136.77,1.55727488]
[1767845796296,8.40980233,136.85,136.77,1.55727488]
[1767845796499,1.82580233,136.85,136.77,1.55727488]
[1767845796694,2.21294098,136.85,136.77,1.55727488]
[1767845797697,6.96751984,136.84,136.77,1.55727488]
[1767845797896,0.04968992,136.82,136.77,1.55727488]
[1767845798906,6.96324319,136.86,136.77,1.55727488]
[1767845799098,6.96324319,136.86,136.79,1.55727488]
[1767845800195,6.96324319,136.86,136.81,0.04619529]
[1767845800395,6.5837,136.85,136.81,0.04619529]
[1767845801907,0.41854497,136.84,136.77,8.14467488]
[1767845802100,0.41854497,136.84,136.78,1.55727488]
[1767845802301,7.00284497,136.84,136.78,1.55727488]
[1767845802698,0.41854497,136.84,136.78,1.55727488]
[1767845803708,0.05545474,136.82,136.8,0.05179845]
[1767845815523,0.05545474,136.82,136.78,1.55727488]
[1767845823132,6.92818662,136.87,136.8,1.49188535]
[1767845824326,0.04759587,136.85,136.82,0.04989978]
[1767845827628,8.79551471,136.89,136.82,1.54178513]
[1767845828535,0.38532658,136.88,136.82,8.12668513]
[1767845832334,6.96772658,136.88,136.82,1.54178513]
[1767845835931,0.36855484,136.86,136.82,0.04989978]
[1767845839822,0.35955619,136.89,136.82,1.54178513]
[1767845840027,0.35955619,136.87,136.82,0.04989978]
[1767845840431,6.94047354,136.86,136.82,0.04989978]
[1767845840734,0.35737354,136.85,136.78,8.07838535]
[1767845841632,0.35522874,136.83,136.76,1.49188535]
[1767845841937,0.40195851,136.83,136.76,1.49188535]
[1767845842520,6.98665851,136.83,136.76,1.49188535]
[1767845851537,0.33509323,136.82,136.76,1.49188535]
[1767845858248,0.33509323,136.82,136.76,8.07978535]
[1767845858449,0.33509323,136.82,136.77,1.46191191]
[1767845860856,0.04672977,136.83,136.77,1.46191191]
[1767845862344,0.04672977,136.83,136.77,8.04931191]
[1767845862754,0.04672977,136.83,136.78,1.46191191]
[1767845863155,0.35935819,136.83,136.78,1.46191191]
[1767845864057,0.04672977,136.83,136.78,1.46191191]
[1767845867658,0.04672977,136.83,136.78,8.04881191]
[1767845868053,0.04672977,136.83,136.78,6.5869]
[1767845868259,0.04672977,136.83,136.79,1.46191191]
[1767845873853,89.29442236,136.87,136.8,1.46191191]
[1767845873854,6.5831,136.87,136.8,1.46191191]
[1767845874054,6.5831,136.87,136.8,1.5154942]
[1767845875665,6.5831,136.87,136.81,1.46191191]
[1767845876963,6.5819,136.89,136.82,1.46191191]
[1767845877866,6.92042306,136.89,136.84,0.05248717]
[1767845878666,6.92042306,136.89,136.84,1.51439908]
[1767845880768,6.92042306,136.89,136.84,0.05248717]
[1767845881459,0.3334765,136.87,136.84,0.05248717]
[1767845881663,0.3334765,136.87,136.82,1.46191191]
[1767845882165,6.9161765,136.87,136.82,1.46191191]
[1767845884771,0.3334765,136.87,136.82,1.46191191]
[1767845885671,6.9161765,136.87,136.82,1.46191191]
[1767845890576,0.04618978,136.88,136.82,1.46191191]
[1767845891167,0.04618978,136.88,136.84,1.47361401]
[1767845892380,0.36458122,136.96,136.86,1.42449183]
[1767845892574,0.36458122,136.96,136.86,87.82449183]
[1767845892773,0.36458122,136.96,136.87,1.42449183]
[1767845893278,6.94298122,136.96,136.89,1.42449183]
[1767845893770,0.36458122,136.96,136.9,0.04638002]
[1767845894571,6.5795,136.94,136.9,0.04638002]
[1767845897569,0.35989432,136.95,136.9,0.04638002]
[1767845901688,6.93899432,136.95,136.9,0.04638002]
[1767845901986,0.35633342,136.94,136.9,0.04638002]
[1767845904578,0.40995261,136.93,136.82,1.42449183]
[1767845904976,0.3537558,136.93,136.83,1.42449183]
[1767845906482,0.30594159,136.91,136.84,8.00849183]
[1767845906677,0.30594159,136.91,136.82,87.80449183]
[1767845906878,0.30594159,136.91,136.83,1.42449183]
[1767845907471,0.04952595,136.88,136.86,0.05187024]
[1767845909973,0.30385666,136.94,136.86,1.47636207]
[1767845910383,0.30385666,136.94,136.86,1.42449183]
[1767845911174,1.8241404,136.95,136.87,1.42449183]
[1767845911378,86.73221864,136.96,136.89,1.47254054]
[1767845912786,93.31091864,136.96,136.89,1.47254054]
[1767845914687,0.34796637,136.95,136.89,1.47254054]
[1767845918190,0.34796637,136.95,136.89,8.05404054]
[1767845919091,6.92686637,136.95,136.89,1.47254054]
[1767845919285,0.34540822,136.94,136.89,1.47254054]
[1767845921194,6.5789,136.95,136.89,1.47254054]
[1767845922499,0.34370409,136.96,136.9,1.49730601]
[1767845924492,0.34370409,136.96,136.91,1.49730601]
[1767845925400,0.34041791,136.98,136.92,1.55008339]
[1767845926601,6.5772,136.99,136.93,1.49730601]
[1767845926991,6.91683757,136.99,136.93,1.49730601]
[1767845927600,8.4003404,137.01,136.93,1.49730601]
[1767845927801,6.91504443,137.01,136.94,1.49730601]
[1767845928502,6.91504443,137.01,136.96,0.05030968]
[1767845930003,6.5764,137.0,136.96,0.05030968]
[1767845932996,6.91141365,137.0,136.96,0.05030968]
[1767845933300,6.91129125,136.99,136.96,0.05030968]
[1767845933492,6.91129125,136.99,136.92,1.49730601]
[1767845933788,6.96244497,136.99,136.92,1.49730601]
[1767845935795,6.9102308,136.98,136.92,1.49730601]
[1767845936700,6.91002226,136.97,136.92,1.49730601]
[1767845936900,0.33212226,136.96,136.9,1.49730601]
[1767845938199,0.05223052,136.94,136.9,1.49730601]
[1767845939002,0.05223052,136.94,136.88,1.49730601]
[1767845940402,0.38159264,136.94,136.88,1.49730601]
[1767845941698,6.96089264,136.94,136.88,1.49730601]
[1767845942595,6.90771529,136.93,136.87,86.34]
[1767845942902,0.3270251,136.92,136.87,86.34]
[1767845943304,0.3270251,136.92,136.87,1.40849909]
[1767845943500,6.5799,136.93,136.87,1.40849909]
[1767845943697,0.05010829,136.91,136.87,1.40849909]
[1767845957014,0.05010829,136.91,136.86,1.40849909]
[1767845957212,6.5792,136.95,136.87,1.40849909]
[1767845957710,6.94646248,136.97,136.89,1.40849909]
[1767845958320,6.94646248,136.97,136.9,1.40849909]
[1767845958920,0.04664446,136.95,136.9,1.40849909]
[1767845962020,0.04664446,136.95,136.91,1.45482434]
[1767845981742,6.577,136.99,136.93,1.40987056]
[1767845982546,0.40519814,137.0,136.94,1.40987056]
[1767845983146,0.40519814,137.0,136.96,0.04939283]
[1767845986346,6.98159814,137.0,136.96,0.04939283]
[1767845987842,6.98110507,136.99,136.94,1.40987056]
[1767845989544,6.5774,136.98,136.94,1.40987056]
[1767845994154,0.40420507,136.99,136.94,1.40987056]
[1767845995752,6.98110507,136.99,136.94,1.40987056]
[1767845997257,6.97920747,136.99,136.94,1.40987056]
[1767845999561,6.5774,136.98,136.92,1.40987056]
[1767846001557,0.40161368,137.04,136.93,1.40987056]
[1767846002062,0.40070749,137.02,136.95,1.47718274]
[1767846003562,6.576,137.01,136.95,1.47718274]
[1767846004165,0.05265253,136.99,136.95,1.47718274]
[1767846016476,0.05265253,136.99,136.95,8.05598274]
[1767846019677,0.05265253,136.99,136.95,1.47718274]
[1767846022176,0.45043182,136.99,136.93,1.46018502]
[1767846023679,6.62975253,136.99,136.93,1.46018502]
[1767846023976,0.39752407,136.98,136.91,1.46018502]
[1767846024376,0.39752407,136.98,136.87,86.32]
[1767846024377,0.39740376,136.95,136.87,6.81624558]
[1767846024580,0.39740376,136.95,136.86,8.2764306]
[1767846024773,0.39740376,136.95,136.86,1.46018502]
[1767846024976,0.39740376,136.94,136.87,1.46018502]
[1767846025380,0.39728663,136.97,136.87,1.46018502]
[1767846025577,0.05229877,136.92,136.87,1.46018502]
[1767846026374,0.39728663,136.96,136.88,0.05599665]
[1767846026573,6.97588663,136.96,136.89,1.46018502]
[1767846027876,6.97588663,136.96,136.91,0.05437214]
[1767846029269,0.39728663,136.96,136.91,1.51455716]
[1767846030170,9.42636005,136.98,136.91,1.51455716]
[1767846030376,9.8230767,136.98,136.91,1.51455716]
[1767846032080,0.39671665,136.98,136.92,1.35731325]
[1767846040000,0.39671665,136.98,136.93,1.35731325]
[1767846040500,8.39997953,136.99,136.93,1.35731325]
[1767846040891,8.39997953,136.99,136.94,1.41241169]
[1767846047106,6.577,136.99,136.94,1.41241169]
[1767846052708,0.39548197,137.0,136.94,1.41241169]
[1767846053712,6.97188197,137.0,136.94,1.41241169]
[1767846057613,0.39014171,136.99,136.94,1.41241169]
[1767846057916,6.96704171,136.99,136.94,1.41241169]
[1767846061412,0.39014171,136.99,136.94,1.41241169]
[1767846061719,6.96533965,137.01,136.95,1.35731325]
[1767846068626,0.38603737,137.0,136.95,1.35731325]
[1767846081645,0.38314056,136.99,136.94,0.05509844]
[1767846082043,2.20612009,137.01,136.94,1.42411983]
[1767846083047,0.38293217,137.0,136.94,1.42411983]
[1767846084345,6.5759,137.01,136.95,1.36902139]
[1767846085546,6.95824348,137.01,136.95,7.94762139]
[1767846088752,6.95824348,137.01,136.95,1.36902139]
[1767846088946,8.78122301,137.01,136.95,1.36902139]
[1767846090858,0.38138594,136.99,136.94,0.05509844]
[1767846092054,0.38131662,136.98,136.94,0.05509844]
[1767846093553,6.95871662,136.98,136.94,0.05509844]
[1767846110175,0.37723717,136.97,136.94,0.05509844]
[1767846110974,0.42945291,136.97,136.91,6.5807]
[1767846111175,0.42945291,136.97,136.92,1.37827875]
[1767846113970,0.05221574,136.97,136.92,7.95837875]
[1767846114174,0.05221574,136.97,136.93,1.37827875]
[1767846122676,0.05221574,136.97,136.91,8.15153429]
[1767846122677,0.42609958,136.97,136.91,8.15153429]
[1767846122880,0.42609958,136.97,136.91,1.32593114]
[1767846123580,0.42609958,136.97,136.92,1.32593114]
[1767846125382,0.05221574,136.97,136.93,1.32593114]
[1767846125585,0.42543579,137.03,136.94,1.32593114]
[1767846125777,0.42543579,137.03,136.95,1.32593114]
[1767846126580,7.00085103,137.02,136.95,1.32593114]
[1767846126775,7.00085103,137.02,136.98,0.04776837]
[1767846133883,0.4246819,137.01,136.98,0.04776837]
[1767846136987,7.0005819,137.01,136.98,0.04776837]
[1767846137287,7.0005819,137.01,136.95,7.90463114]
[1767846137288,0.42431737,137.0,136.95,1.32593114]
[1767846147599,0.42344921,136.99,136.93,1.32593114]
[1767846148390,0.04998489,136.97,136.93,1.32593114]
[1767846148587,0.47337441,136.97,136.91,101.07223429]
[1767846148991,0.47337441,136.97,136.92,1.32593114]
[1767846149197,7.05137441,136.97,136.92,1.32593114]
[1767846155204,0.47337441,136.97,136.92,1.32593114]
[1767846155405,0.42246918,137.02,136.92,1.32593114]
[1767846155603,0.42246918,137.02,136.93,1.49551049]
[1767846156101,0.47245407,137.01,136.95,1.44066294]
[1767846156701,0.47245407,137.01,136.97,0.04950407]
[1767846160921,2.27608966,137.03,136.97,1.49016701]
[1767846161223,0.45413456,137.03,136.98,1.44066294]
[1767846162526,6.5749,137.04,136.98,1.44066294]
[1767846162727,15.33535609,137.05,136.99,1.44066294]
[1767846163028,14.91760358,137.05,136.99,1.44066294]
[1767846163525,14.91760358,137.05,137.01,0.05616458]
[1767846167020,14.91760358,137.05,137.01,1.49682752]
[1767846168630,102.2213,137.11,137.01,1.49682752]
[1767846168631,0.31352764,137.09,137.02,1.44066294]
[1767846169525,6.88572764,137.09,137.04,0.0495456]
[1767846180139,0.14021783,137.08,137.04,0.0495456]
[1767846182235,0.14021783,137.08,137.0,7.78748957]
[1767846182431,0.14021783,137.08,137.01,1.21148957]
[1767846183542,6.71281783,137.08,137.01,7.78728957]
[1767846183748,0.04718223,137.06,137.01,7.78728957]
[1767846186051,0.04718223,137.06,137.02,1.14923848]
[1767846195342,0.04718223,137.06,137.03,1.14923848]
[1767846195651,0.14021783,137.08,137.03,1.14923848]
[1767846195849,0.14021783,137.08,137.03,1.19645751]
[1767846196953,92.8521,137.09,137.03,1.19645751]
[1767846199450,6.5721,137.09,137.03,1.19645751]
[1767846200654,6.5726,137.08,137.03,1.19645751]
[1767846201057,1.8219551,137.09,137.03,1.19645751]
[1767846201258,6.5727,137.08,137.03,1.19645751]
[1767846203651,6.5727,137.08,137.03,0.04721903]
[1767846203855,8.3946551,137.08,137.03,0.04721903]
[1767846206158,6.573,137.07,137.03,0.04721903]
[1767846206958,6.5736,137.06,137.03,0.04721903]
[1767846210156,6.574,137.05,136.99,1.14923848]
[1767846210357,1.86911282,137.06,136.98,1.14923848]
[1767846210559,88.14911282,137.06,136.98,1.14923848]
[1767846210755,88.1019551,137.06,136.98,1.14923848]
[1767846211458,0.05488481,137.03,136.98,1.14923848]
[1767846212056,0.05488481,137.03,136.96,7.81512997]
[1767846212365,1.87683991,137.03,136.96,7.81512997]
[1767846212662,1.87683991,137.03,136.96,0.99953501]
[1767846213761,8.45193991,137.03,136.96,0.99953501]
[1767846215963,1.87683991,137.03,136.97,0.99953501]
[1767846218466,0.05488481,137.03,136.97,0.99953501]
[1767846222762,6.62988481,137.03,136.97,0.99953501]
[1767846226371,6.62988481,137.03,136.95,7.57823501]
[1767846226764,6.62988481,137.03,136.96,0.99953501]
[1767846231158,6.62988481,137.03,136.97,0.99953501]
[1767846231361,0.05488481,137.03,136.97,0.99953501]
[1767846232770,0.05488481,137.03,136.97,7.57733501]
[1767846233270,0.05488481,137.03,136.98,0.99953501]
[1767846235371,0.05488481,137.03,136.99,0.99953501]
[1767846237370,0.05488481,137.03,136.99,7.57643501]
[1767846237571,0.05488481,137.03,137.0,0.99953501]
[1767846241384,6.5736,137.06,137.01,0.99953501]
[1767846245382,6.573,137.08,137.02,0.888443]
[1767846245785,191.35969967,137.12,137.02,0.888443]
[1767846246085,6.5721,137.09,137.03,0.888443]
[1767846246276,6.5721,137.09,137.04,0.05060229]
[1767846247882,6.5715,137.11,137.04,0.93904529]
[1767846248480,6.5715,137.11,137.05,0.888443]
[1767846250186,0.9046672,137.22,137.14,0.888443]
[1767846250385,0.9046672,137.25,137.15,0.888443]
[1767846250882,7.4697672,137.24,137.16,0.888443]
[1767846251283,0.9046672,137.24,137.16,0.888443]
[1767846251491,0.9046672,137.24,137.17,0.888443]
[1767846252391,15.60745565,137.26,137.18,0.888443]
[1767846252985,15.60745565,137.26,137.21,0.04772101]
[1767846254287,14.70278845,137.26,137.21,0.93616401]
[1767846254991,13.44131714,137.26,137.21,0.93616401]
[1767846256592,12.54131715,137.26,137.21,0.04772101]
[1767846256802,13.44598435,137.26,137.21,0.04772101]
[1767846257588,0.9046672,137.25,137.21,0.04772101]
[1767846257783,0.9046672,137.25,137.19,0.888443]
[1767846257990,0.9589983,137.25,137.19,0.888443]
[1767846258493,0.9046672,137.24,137.16,0.888443]
[1767846259291,0.05605273,137.21,137.16,0.888443]
[1767846260698,0.96071993,137.21,137.14,0.888443]
[1767846261296,0.9046672,137.21,137.14,0.888443]
[1767846261897,0.9046672,137.21,137.11,0.888443]
[1767846262086,0.05084033,137.19,137.11,0.888443]
[1767846263289,0.65550752,137.2,137.11,0.888443]
[1767846264693,6.567,137.2,137.11,0.888443]
[1767846266306,7.4716672,137.2,137.11,0.888443]
[1767846266500,7.4716672,137.2,137.11,7.459343]
[1767846266693,7.4716672,137.2,137.12,0.888443]
[1767846269404,0.9046672,137.23,137.13,6.5699]
[1767846269610,0.9046672,137.23,137.14,0.888443]
[1767846270107,0.9046672,137.23,137.16,0.888443]
[1767846273199,12.54131715,137.26,137.19,0.89201115]
[1767846273396,13.41580404,137.26,137.19,0.89201115]
[1767846274209,13.41580404,137.26,137.19,7.45911115]
[1767846275404,13.41580404,137.26,137.2,7.45851115]
[1767846276005,12.54131715,137.26,137.21,0.89201115]
[1767846277315,12.54131715,137.26,137.21,7.45811115]
[1767846277708,12.44529762,137.26,137.21,7.45811115]
[1767846278010,12.44529762,137.26,137.22,0.89201115]
[1767846283411,0.87448689,137.29,137.22,7.45761115]
[1767846287510,0.87448689,137.29,137.2,0.89201115]
[1767846288013,0.87448689,137.29,137.18,86.16]
[1767846288014,0.87448689,137.25,137.18,0.89201115]
[1767846288602,0.87448689,137.25,137.17,6.5678]
[1767846288603,0.87448689,137.24,137.17,6.5678]
[1767846289210,0.87448689,137.24,137.16,0.89201115]
[1767846289211,0.87448689,137.23,137.16,0.89201115]
[1767846289910,0.87448689,137.23,137.16,7.46061115]
[1767846290514,0.87448689,137.22,137.14,6.5693]
[1767846290811,0.87448689,137.22,137.14,7.46131115]
[1767846291611,7.44048689,137.22,137.14,7.46131115]
[1767846292009,0.87448689,137.21,137.14,7.46131115]
[1767846292211,0.87448689,137.21,137.15,6.5691]
[1767846292519,0.87448689,137.21,137.15,7.46111115]
[1767846293318,2.68890644,137.24,137.17,0.89201115]
[1767846294720,2.68890644,137.24,137.17,7.46011115]
[1767846296723,0.87448689,137.23,137.17,7.46011115]
[1767846301313,0.87448689,137.26,137.19,0.89201115]
[1767846302225,0.87448689,137.26,137.2,6.5667]
[1767846302426,0.87448689,137.26,137.2,7.43917195]
[1767846302621,86.16,137.3,137.21,0.87247195]
[1767846302622,0.87425209,137.28,137.21,0.87247195]
[1767846302826,87.04485484,137.3,137.23,0.83846942]
[1767846303021,0.88485484,137.3,137.23,0.83846942]
[1767846303616,0.88485484,137.3,137.22,86.16]
[1767846303617,0.88485484,137.3,137.24,7.40316942]
[1767846303815,8.37561955,137.32,137.24,7.40316942]
[1767846304030,9.26047439,137.32,137.24,7.40316942]
[1767846304232,0.88485484,137.32,137.25,0.83846942]
[1767846304625,0.88485484,137.32,137.26,0.83846942]
[1767846305835,93.60505484,137.34,137.26,0.83846942]
[1767846306530,102.0205,137.38,137.26,0.83846942]
[1767846306531,0.88485484,137.38,137.3,0.83846942]
[1767846307033,0.88485484,137.38,137.31,2.65288897]
[1767846308636,0.88485484,137.38,137.31,0.83846942]
[1767846310627,0.88485484,137.38,137.31,7.39976942]
[1767846310823,0.88485484,137.42,137.32,0.83846942]
[1767846311034,0.88485484,137.42,137.31,103.87951955]
[1767846311035,0.88485484,137.42,137.34,0.83846942]
[1767846311335,0.88485484,137.42,137.35,7.39786942]
[1767846311536,0.88485484,137.45,137.36,0.83846942]
[1767846312124,0.88485484,137.43,137.36,0.83846942]
[1767846313437,0.88485484,137.46,137.36,0.83846942]
[1767846313634,0.88485484,137.46,137.38,0.83846942]
[1767846314431,7.43945484,137.46,137.38,0.83846942]
[1767846314843,0.88485484,137.45,137.35,0.83846942]
[1767846315030,0.88485484,137.42,137.35,0.83846942]
[1767846315238,6.5561,137.43,137.35,0.83846942]
[1767846315636,7.43995484,137.45,137.35,0.83846942]
[1767846316140,0.88485484,137.45,137.35,0.83846942]
[1767846317140,0.88485484,137.43,137.35,0.83846942]
[1767846318545,7.44105484,137.43,137.35,0.83846942]
[1767846322144,7.43995484,137.45,137.36,0.83846942]
[1767846322343,0.88485484,137.45,137.36,86.91846942]
[1767846322547,0.88485484,137.45,137.37,0.83846942]
[1767846323447,0.88485484,137.45,137.37,7.39696942]
[1767846324750,0.88485484,137.45,137.38,0.83846942]
[1767846325252,0.88485484,137.47,137.39,0.83846942]
[1767846325642,21.03553574,137.48,137.39,0.83846942]
[1767846325851,21.92039058,137.48,137.39,0.83846942]
[1767846326647,21.92039058,137.48,137.39,7.39606942]
[1767846327858,21.92039058,137.48,137.4,0.83846942]
[1767846329460,15.36669058,137.48,137.41,0.83846942]
[1767846329755,14.48183574,137.48,137.41,0.83846942]
[1767846330659,14.48183574,137.48,137.42,0.83846942]
[1767846331954,0.88485484,137.54,137.44,123.8975]
[1767846332159,0.87323059,137.58,137.45,123.8898]
[1767846332460,2.68062206,137.58,137.47,1.80739147]
[1767846332660,7.42313059,137.56,137.47,1.80739147]
[1767846332852,0.87323059,137.55,137.47,1.80739147]
[1767846333251,0.87323059,137.54,137.45,94.42189147]
[1767846333451,0.87323059,137.54,137.45,94.40189147]
[1767846334456,0.87323059,137.54,137.45,87.84739147]
[1767846335156,7.42403059,137.54,137.45,94.40209147]
[1767846335459,0.87323059,137.53,137.45,87.84739147]
[1767846336161,0.87323059,137.53,137.45,94.40199147]
[1767846337268,0.87323059,137.53,137.45,94.38199147]
[1767846337655,0.87323059,137.53,137.46,6.5542]
[1767846338060,0.87323059,137.53,137.47,6.5538]
[1767846338256,0.87323059,137.53,137.46,86.02]
[1767846338462,6.5498,137.56,137.46,86.02]
[1767846338463,7.42303059,137.56,137.46,86.02]
[1767846338660,7.42303059,137.56,137.45,101.9605]
[1767846338860,0.87323059,137.56,137.47,101.9466]
[1767846339061,0.87323059,137.56,137.48,101.9417]
[1767846339256,0.87323059,137.56,137.47,101.9466]
[1767846339257,0.87323059,137.56,137.49,92.5726]
[1767846339460,0.87323059,137.56,137.49,86.02]
[1767846339759,0.87323059,137.58,137.49,86.02]
[1767846340064,0.87323059,137.58,137.5,101.927]
[1767846340462,86.02,137.63,137.5,101.927]
[1767846340463,0.87323059,137.61,137.53,6.5509]
[1767846340769,7.42063059,137.61,137.52,86.02]
[1767846340964,0.87323059,137.6,137.52,86.02]
[1767846341952,0.87323059,137.59,137.52,86.02]
[1767846342762,7.42163059,137.59,137.5,6.5523]
[1767846342964,0.87323059,137.58,137.5,86.0]
[1767846343159,0.87323059,137.58,137.44,101.9693]
[1767846343467,7.42303059,137.56,137.47,6.5537]
[1767846343664,0.87323059,137.56,137.47,6.5537]
[1767846344167,0.87323059,137.56,137.48,6.5532]
[1767846345769,0.87323059,137.56,137.43,101.9787]
[1767846346071,0.87323059,137.56,137.44,86.0]
[1767846346573,7.42343059,137.55,137.46,6.5542]
[1767846346767,0.87323059,137.54,137.46,6.5542]
[1767846346961,0.87323059,137.54,137.45,101.9643]
[1767846348772,0.87323059,137.54,137.48,6.5532]
[1767846349273,0.87323059,137.56,137.49,6.5528]
[1767846350066,0.87323059,137.56,137.5,6.5522]
[1767846350461,0.87323059,137.56,137.48,187.9389]
[1767846350668,0.87323059,137.59,137.5,101.9277]
[1767846350975,0.87323059,137.59,137.51,85.98]
[1767846351363,187.8068,137.64,137.52,101.9119]
[1767846351364,0.87323059,137.62,137.52,101.9119]
[1767846351569,0.87323059,137.62,137.53,187.8853]
[1767846352373,0.87323059,137.62,137.56,6.5495]
[1767846359279,0.87323059,137.62,137.55,85.98]
[1767846359580,0.87323059,137.62,137.51,88.78124862]
[1767846359779,0.87323059,137.62,137.51,85.96]
[1767846359980,0.87323059,137.6,137.53,6.5506]
[1767846362483,0.87323059,137.6,137.52,187.8698]
[1767846362687,0.96673647,137.63,137.55,101.8901]
[1767846363580,0.96673647,137.63,137.54,101.8974]
[1767846363776,0.96673647,137.63,137.55,85.96]
[1767846364282,0.96673647,137.63,137.53,85.96]
[1767846364791,101.8157,137.66,137.49,101.9334]
[1767846364792,0.92226767,137.61,137.49,101.9334]
[1767846365090,0.92226767,137.61,137.5,85.96]
[1767846365290,0.92226767,137.61,137.49,101.9334]
[1767846365491,0.92226767,137.61,137.5,85.96]
[1767846366088,0.92226767,137.58,137.5,85.96]
[1767846367694,0.92226767,137.58,137.51,6.5519]
[1767846368591,0.92226767,137.58,137.52,6.5514]
[1767846369382,0.92226767,137.58,137.5,92.5122]
[1767846369992,0.92226767,137.63,137.51,101.9205]
[1767846370295,0.92226767,137.63,137.53,101.9052]
[1767846370496,0.92226767,137.65,137.57,6.549]
[1767846370684,0.92226767,137.65,137.55,101.8886]
[1767846371490,0.92226767,137.65,137.56,85.96]
[1767846371680,7.46656767,137.68,137.56,187.8385]
[1767846371887,0.92226767,137.68,137.56,101.8785]
[1767846372089,0.92226767,137.67,137.57,85.96]
[1767846373192,6.5449,137.66,137.59,6.548]
[1767846373495,7.46716767,137.66,137.57,85.96]
[1767846373684,7.46716767,137.66,137.57,92.5087]
[1767846374287,7.46716767,137.66,137.58,6.5485]
[1767846374488,6.5454,137.65,137.58,6.5485]
[1767846378695,0.92226767,137.66,137.58,6.5485]
[1767846378900,0.92226767,137.66,137.59,6.5481]
[1767846379100,6.5447,137.67,137.59,6.5481]
[1767846379396,6.5449,137.66,137.59,6.5481]
[1767846381996,15.18928828,137.69,137.58,101.8667]
[1767846382197,15.18928828,137.69,137.59,85.94]
[1767846383303,14.26702061,137.69,137.63,6.5461]
[1767846383601,14.26702061,137.69,137.62,85.94]
[1767846383803,14.26702061,137.69,137.63,85.94]
[1767846384799,0.92226767,137.75,137.63,87.4]